{"text_format":"1","workbook":"xlsx","n_sheets":2,"sheets":["Página 1","COMPOSIÇÃO"],"not_rendered":{"charts":0,"images":0,"macros":1,"external_links":0,"defined_names":3,"comments":0,"pivot_tables":0},"unopened":[],"bounds":{"document_bytes":16777216,"sheet_cells":100000,"rows_first":2000,"rows_last":500,"rows_between":2000,"halvings":0,"cell_chars":16384,"cell_head_chars":4096},"cells_cut":0,"cells_raw":0,"read":"whole","date_system":"1900"}

{"sheet":"Página 1","index":0,"n_rows":141,"n_cols":10,"rows_kept":141,"cut":false,"hidden":false,"merged":[[5,5,6,7],[5,8,6,9],[128,1,128,4]]}
["                                     ",null,null,null,"ORÇAMENTO "]
[]
[null,"Data de Elaboração do Orçamento: Dezembro de 2023",null,null,null,null,null,null,null,"fl. 01/02"]
[null,"Nome da Obra: Salão Comunitário Linha Aliança"]
[null,"Área: 748,80 m²"]
[null,"Endereço: Linha Aliança, Interior, Cunhataí/SC",null,null,null,22,null,null,22]
[null,"Tipo de Intervenção: PROJETO EXECUTIVO - INSTALAÇÕES ELÉTRICAS"]
[null,"Item","Sinapi","Valor","Discriminação","Quant.","Unid.","Valor Unit.","Total","Geral"]
[null,null,null,null,"ORÇAMENTO"]
[null,1,null,null,"INSTALAÇÕES ELÉTRICAS"," "," "," "," "]
[null,"1.1","411 I.",0.23,"ABRACADEIRA DE NYLON PARA AMARRACAO DE CABOS, COMPRIMENTO DE 200 X *4,6* MM",30,"un",{"$f":"D11*(($F$6/100)+1)","v":0.28000000000000003},{"$f":"SUM(F11*H11)","v":8.4}]
[null,"1.2",91939,32.65,"CAIXA RETANGULAR 4\" X 2\" ALTA (2,00 M DO PISO), PVC, INSTALADA EM PAREDE - FORNECIMENTO E INSTALAÇÃO",8,"un",{"$f":"D12*(($F$6/100)+1)","v":39.83},{"$f":"SUM(F12*H12)","v":318.64}]
[null,"1.3",91940,18.48,"CAIXA RETANGULAR 4\" X 2\" MÉDIA (1,30 M DO PISO), PVC, INSTALADA EM PAREDE - FORNECIMENTO E INSTALAÇÃO",31,"un",22.55,699.05]
[null,"1.4",91941,11.52,"CAIXA RETANGULAR 4\" X 2\" BAIXA (0,30 M DO PISO), PVC, INSTALADA EM PAREDE - FORNECIMENTO E INSTALAÇÃO",2,"un",14.05,28.1]
[null,"1.5",90456,6.03,"QUEBRA EM ALVENARIA PARA INSTALAÇÃO DE CAIXA DE TOMADA (4X4 OU 4X2)",{"$f":"IFERROR(F14+F13+F12,999)","v":41},"un",7.36,301.76]
[null,"1.6",91992,48.12,"TOMADA ALTA DE EMBUTIR (1 MÓDULO), 2P+T 10 A, INCLUINDO SUPORTE E PLACA - FORNECIMENTO E INSTALAÇÃO",9,"un",58.71,528.39]
[null,"1.7",92004,59.88,"TOMADA ALTA DE EMBUTIR (2 MÓDULOS), 2P+T 10 A, INCLUINDO SUPORTE E PLACA - FORNECIMENTO E INSTALAÇÃO",9,"un",{"$f":"D17*(($F$6/100)+1)","v":73.05},{"$f":"SUM(F17*H17)","v":657.45}]
[null,"1.8",91996,37.5,"TOMADA MÉDIA DE EMBUTIR (1 MÓDULO), 2P+T 10 A, INCLUINDO SUPORTE E PLACA - FORNECIMENTO E INSTALAÇÃO",16,"un",45.75,732]
[null,"1.9",92004,59.88,"TOMADA MÉDIA DE EMBUTIR (2 MÓDULOS), 2P+T 10 A, INCLUINDO SUPORTE E PLACA - FORNECIMENTO E INSTALAÇÃO",1,"un",73.05,73.05]
[null,"1.10",91996,37.5,"TOMADA MÉDIA DE EMBUTIR (1 MÓDULO), 2P+T 10 A, INCLUINDO SUPORTE E PLACA - FORNECIMENTO E INSTALAÇÃO",1,"un",{"$f":"D20*(($F$6/100)+1)","v":45.75},{"$f":"SUM(F20*H20)","v":45.75}]
[null,"1.11","COTAÇÃO",1.99,"CONECTOR WAGO PARA CABOS ATÉ 6 MM",{"$f":"21*3","v":63},"un",2.4300000000000002,153.09]
[null,"1.12","1550 I.",8.4499999999999993,"CONECTOR METALICO TIPO PARAFUSO FENDIDO (SPLIT BOLT), PARA CABOS ATE 25 MM2",3,"un",{"$f":"D22*(($F$6/100)+1)","v":10.31},{"$f":"SUM(F22*H22)","v":30.93}]
[null,"1.13","38055 I.",5.24,"GRAMPO METALICO TIPO OLHAL PARA HASTE DE ATERRAMENTO DE 1/2'', CONDUTOR DE *10* A 50 MM2",9,"un",{"$f":"D23*(($F$6/100)+1)","v":6.39},{"$f":"SUM(F23*H23)","v":57.51}]
[null,"1.14",91953,31.83,"INTERRUPTOR SIMPLES (1 MÓDULO), 10A/250V, INCLUINDO SUPORTE E PLACA - FORNECIMENTO E INSTALAÇÃO",9,"un",38.83,349.47]
[null,"1.15",91959,48.53,"INTERRUPTOR SIMPLES (2 MÓDULOS), 10A/250V, INCLUINDO SUPORTE E PLACA - FORNECIMENTO E INSTALAÇÃO",4,"un",59.21,236.84]
[null,"1.16",92023,54.15,"INTERRUPTOR SIMPLES (1 MÓDULO) COM 1 TOMADA DE EMBUTIR 2P+T 10 A, INCLUINDO SUPORTE E PLACA - FORNECIMENTO E INSTALAÇÃO",1,"un",66.06,66.06]
[null,"1.17",92029,61.1,"INTERRUPTOR PARALELO (1 MÓDULO) COM 1 TOMADA DE EMBUTIR 2P+T 10 A, INCLUINDO SUPORTE E PLACA - FORNECIMENTO E INSTALAÇÃO",1,"un",{"$f":"D27*(($F$6/100)+1)","v":74.540000000000006},{"$f":"SUM(F27*H27)","v":74.540000000000006}]
[null,"1.18",91955,38.72,"INTERRUPTOR PARALELO (1 MÓDULO), 10A/250V, INCLUINDO SUPORTE E PLACA - FORNECIMENTO E INSTALAÇÃO",1,"un",47.24,47.24]
[null,"1.19","38091 I.",2.61,"ESPELHO / PLACA CEGA 4\" X 2\", PARA INSTALACAO DE TOMADAS E INTERRUPTORES",4,"un",3.18,12.72]
[null,"1.20","39390 I.",29.78,"LUMINARIA LED REFLETOR RETANGULAR BIVOLT, LUZ BRANCA, 30 W",7,"un",36.33,254.31]
[null,"1.21","39391 I.",33.44,"LUMINARIA LED REFLETOR RETANGULAR BIVOLT, LUZ BRANCA, 50 W",28,"un",40.799999999999997,1142.4000000000001]
[null,"1.22","COTAÇÃO",19.86,"PLAFON LED 18W/20W",6,"un",24.23,145.38]
[null,"1.23","COTAÇÃO",17.82,"LUMINÁRIA SLIM LED 20W",15,"un",21.74,326.10000000000002]
[null,"1.24","COTAÇÃO",20.49,"LUMINÁRIA SLIM LED 40W",17,"un",{"$f":"D34*(($F$6/100)+1)","v":25},{"$f":"SUM(F34*H34)","v":425}]
[null,"1.25","COTAÇÃO",41.9,"LUMINÁRIA SLIM LED 80W",6,"un",{"$f":"D35*(($F$6/100)+1)","v":51.12},{"$f":"SUM(F35*H35)","v":306.72000000000003}]
[null,"1.26","COTAÇÃO",40.98,"RELÉ FOTOELÉTRICO",7,"un",{"$f":"D36*(($F$6/100)+1)","v":50},{"$f":"SUM(F36*H36)","v":350}]
[null,"1.27",97597,78.72,"SENSOR DE PRESENÇA COM FOTOCÉLULA, FIXAÇÃO EM TETO - FORNECIMENTO E INST.",1,"un",96.04,96.04]
[null,"1.28",91845,8.02,"ELETRODUTO FLEXÍVEL CORRUGADO REFORÇADO, PVC, DN 25 MM (3/4\"), PARA CIRCUITOS TERMINAIS, INSTALADO EM LAJE - FORNECIMENTO E INSTALAÇÃO",2,"m",9.7799999999999994,19.559999999999999]
[null,"1.29",91847,12.64,"ELETRODUTO FLEXÍVEL CORRUGADO REFORÇADO, PVC, DN 25 MM (1\"), PARA CIRCUITOS TERMINAIS, INSTALADO EM LAJE - FORNECIMENTO E INSTALAÇÃO",5,"m",15.42,77.099999999999994]
[null,"1.30",91854,9.82,"ELETRODUTO FLEXÍVEL CORRUGADO, PVC, DN 25 MM (3/4\"), PARA CIRCUITOS TERMINAIS, INSTALADO EM PAREDE - FORNECIMENTO E INSTALAÇÃO",72,"m",11.98,862.56]
[null,"1.31",90447,9.1,"RASGO EM ALVENARIA PARA ELETRODUTOS COM DIAMETROS MENORES OU IGUAIS A 40 MM",{"$f":"IFERROR(F40,999)","v":72},"m",11.1,799.2]
[null,"1.32",90466,15.55,"CHUMBAMENTO LINEAR EM ALVENARIA PARA RAMAIS/DISTRIBUIÇÃO COM DIÂMETROS MENORES OU IGUAIS A 40 MM",{"$f":"IFERROR(F41,999)","v":72},"m",18.97,1365.84]
[null,"1.33","39210 I.",0.96,"ARRUELA PARA ELETRODUTO 1\"",5,"un",1.17,5.85]
[null,"1.34","39212 I.",1.92,"ARRUELA PARA ELETRODUTO 1.1/2\"",1,"un",{"$f":"D44*(($F$6/100)+1)","v":2.34},{"$f":"SUM(F44*H44)","v":2.34}]
[null,"1.35","39176 I.",1.29,"BUCHA EM ALUMINIO, COM ROSCA, DE 1\", PARA ELETRODUTO",5,"un",{"$f":"D45*(($F$6/100)+1)","v":1.57},{"$f":"SUM(F45*H45)","v":7.85}]
[null,"1.36","39178 I.",2.1800000000000002,"BUCHA EM ALUMINIO, COM ROSCA, DE 1.1/2\", PARA ELETRODUTO",1,"un",{"$f":"D46*(($F$6/100)+1)","v":2.66},{"$f":"SUM(F46*H46)","v":2.66}]
[null,"1.37",96562,59.53,"SUPORTE PARA ELETROCALHA LISA OU PERFURADA EM AÇO GALVANIZADO, LARGURA 200 OU 400 MM E ALTURA 50 MM, ESPAÇADO A CADA 1,5 M, EM PERFILADO DE SEÇÃO 38X76 MM, POR METRO DE ELETRECOLHA FIXADA",66,"m",72.63,4793.58]
[null,"1.38","39328 I.",5.85,"PERFILADO LISO OU PERFURADO 19 X 38 MM",27,"m",7.14,192.78]
[null,"1.39","39028 I.",10.64,"PERFILADO LISO SIMPLES 38 X 38 MM, CHAPA 22",66,"m",12.98,856.68]
[null,"1.40","COTAÇÃO",1.57,"SUSPENSOR PARA CABO DE AÇO 1/8\"",10,"un",1.92,19.2]
[null,"1.41","COTAÇÃO",1.05,"CABO DE AÇO 1/8\"",25,"m",1.28,32]
[null,"1.42","COTAÇÃO",0.64,"GRAMPO PARA CABO DE AÇO",25,"un",0.78,19.5]
[null,"1.43","COTAÇÃO",2.4300000000000002,"JUNÇÃO I PARA PERFILADO",{"$f":"8+12","v":20},"un",2.96,59.2]
[null,"1.44","COTAÇÃO",5.96,"CURVA HORIZONTAL 90° PARA PERFILADO",6,"un",7.27,43.62]
[null,"1.45","COTAÇÃO",1.76,"SAÍDA FINAL PARA ELETRODUTO 3/4\"",1,"un",{"$f":"D55*(($F$6/100)+1)","v":2.15},{"$f":"SUM(F55*H55)","v":2.15}]
[null,"1.46","COTAÇÃO",4.01,"SAÍDA LATERAL PARA ELETRODUTO 3/4\"",17,"un",{"$f":"D56*(($F$6/100)+1)","v":4.8899999999999997},{"$f":"SUM(F56*H56)","v":83.13}]
[null,"1.47","COTAÇÃO",4.26,"SAÍDA LATERAL PARA ELETRODUTO 1\"",5,"un",5.2,26]
[null,"1.48","COTAÇÃO",4.01,"SAÍDA SUPERIOR PARA ELETRODUTO 1/2\"",7,"un",4.8899999999999997,34.229999999999997]
[null,"1.49","COTAÇÃO",0.33,"PARAFUSO CABEÇA DE LENTILHA",{"$f":"IFERROR(F53*4+F55*2+F58*2,9999)","v":96},"un",0.4,38.4]
[null,"1.50","COTAÇÃO",0.08,"PORCA DE AÇO SEXTAVADA",{"$f":"IFERROR(F59,9999)","v":96},"un",0.1,9.6]
[null,"1.51","COTAÇÃO",0.06,"ARRUELA DE PRESSÃO",{"$f":"IFERROR(F60,9999)","v":96},"un",7.0000000000000007E-2,6.72]
[null,"1.52","21136 I.",20.9,"ELETRODUTO EM ACO GALVANIZADO ELETROLITICO, DIAMETRO 1\", NBR5624 OU 13057",15,"m",25.5,382.5]
[null,"1.53","21128 I.",16.170000000000002,"ELETRODUTO EM ACO GALVANIZADO ELETROLITICO, DIAMETRO 3/4\", NBR5624 OU 13057",22,"m",19.73,434.06]
[null,"1.54","2637 I.",2.98,"LUVA 3/4\" OU UNIDUT 3/4\" PARA ELETRODUTO DE AÇO GALVANIZADO",4,"un",{"$f":"D64*(($F$6/100)+1)","v":3.64},{"$f":"SUM(F64*H64)","v":14.56}]
[null,"1.55","2638 I.",3.46,"LUVA 1\" OU UNIDUT 1\" PARA ELETRODUTO DE AÇO GALVANIZADO",3,"un",{"$f":"D65*(($F$6/100)+1)","v":4.22},{"$f":"SUM(F65*H65)","v":12.66}]
[null,"1.56","2633 I.",7.9,"CURVA 90 GRAUS, PARA ELETRODUTO, EM ACO GALVANIZADO ELETROLITICO, DIAMETRO DE 20 MM (3/4\") - NBR5624 OU NBR13057 OU CONECTOR CURVO COM JANELA",16,"un",9.64,154.24]
[null,"1.57","2617 I.",10.74,"CURVA 90 GRAUS, PARA ELETRODUTO, EM ACO GALVANIZADO ELETROLITICO, DIAMETRO DE 25 MM (1\") - NBR5624 OU NBR13057 OU CONECTOR CURVO COM JANELA",6,"un",13.1,78.599999999999994]
[null,"1.58","39128 I.",1.23,"ABRAÇADEIRA PARA ELETRODUTO 3/4\"",20,"un",1.5,30]
[null,"1.59","39129 I.",1.32,"ABRAÇADEIRA PARA ELETRODUTO 1\"",12,"un",1.61,19.32]
[null,"1.60",95778,29.25,"CONDULETE DE ALUMÍNIO, TIPO C, PARA ELETRODUTO DE AÇO GALVANIZADO DN 20 MM (3/4''), APARENTE - FORNECIMENTO E INSTALAÇÃO",3,"un",35.69,107.07]
[null,"1.61",95779,24.27,"CONDULETE DE ALUMÍNIO, TIPO E, PARA ELETRODUTO DE AÇO GALVANIZADO DN 20 MM (3/4''), APARENTE - FORNECIMENTO E INSTALAÇÃO",18,"un",29.61,532.98]
[null,"1.62",95787,29.32,"CONDULETE DE ALUMÍNIO, TIPO LR OU LL, PARA ELETRODUTO DE AÇO GALVANIZADO DN 20 MM (3/4''), APARENTE - FORNECIMENTO E INSTALAÇÃO",1,"un",35.770000000000003,35.770000000000003]
[null,"1.63",95795,33.44,"CONDULETE DE ALUMÍNIO, TIPO T, PARA ELETRODUTO DE AÇO GALVANIZADO DN 20 MM (3/4''), APARENTE - FORNECIMENTO E INSTALAÇÃO.",2,"un",40.799999999999997,81.599999999999994]
[null,"1.64",95801,40.08,"CONDULETE DE ALUMÍNIO, TIPO X OU TB, PARA ELETRODUTO DE AÇO GALVANIZADO DN 20 MM (3/4''), APARENTE - FORNECIMENTO E INSTALAÇÃO.",3,"un",48.9,146.69999999999999]
[null,"1.65",97881,132.72999999999999,"CAIXA ENTERRADA ELÉTRICA RETANGULAR, EM CONCRETO PRÉ-MOLDADO, FUNDO COM BRITA, DIMENSÕES INTERNAS: 0,3X0,3X0,3 M",2,"un",161.93,323.86]
[null,"1.66",97883,406.22,"CAIXA ENTERRADA ELÉTRICA RETANGULAR, EM CONCRETO PRÉ-MOLDADO, FUNDO COM BRITA, DIMENSÕES INTERNAS: 0,6X0,6X0,5 M",1,"un",495.59,495.59]
[null,"1.67","868 I.",23.77,"CABO DE COBRE NU 25 MM2 MEIO-DURO",18,"m",{"$f":"D77*(($F$6/100)+1)","v":29},{"$f":"SUM(F77*H77)","v":522}]
[null,"1.68",90105,8.6999999999999993,"ESCAVAÇÃO MECANIZADA DE VALA COM PROFUNDIDADE ATÉ 1,5 M (MÉDIA MONTANTE E JUSANTE/UMA COMPOSIÇÃO POR TRECHO), RETROESCAV. (0,26 M3), LARGURA MENOR QUE 0,8 M, EM SOLO DE 1A CATEGORIA, LOCAIS COM BAIXO NÍVEL DE INTERFERÊNCIA",{"$f":"(18+3)*0.5*0.8","v":8.4},"m³",10.61,89.12]
[null,"1.69",93380,15.09,"REATERRO MECANIZADO DE VALA COM RETROESCAVADEIRA (CAPACIDADE DA CAÇAMBDA RETRO: 0,26 M³ / POTÊNCIA: 88 HP), LARGURA ATÉ 0,8 M, PROFUNDIDADE DE 1,5 A 3,0 M, COM SOLO DE 1ª CATEGORIA EM LOCAIS COM BAIXO NÍVEL DE INTERFERÊNCIA",{"$f":"IFERROR(F78,9999)","v":8.4},"m³",18.41,154.63999999999999]
[null,"1.70",97667,7.87,"ELETRODUTO FLEXÍVEL CORRUGADO, PEAD, DN 50 (1.1/2\"), PARA REDE ENTERRADA DE DISTRIBUIÇÃO DE ENERGIA ELÉTRICA - FORNECIMENTO E INSTALAÇÃO",5,"m",9.6,48]
[null,"1.71","COTAÇÃO",0.83,"FITA DE ADVERTÊNCIA \"CUIDADO LINHA ELÉTRICA\"",5,"m",{"$f":"D81*(($F$6/100)+1)","v":1.01},{"$f":"SUM(F81*H81)","v":5.05}]
[null,"1.72",91933,15.6,"CABO DE COBRE FLEXÍVEL ISOLADO, 10 MM², ANTI-CHAMA 0,6/1,0 KV, PARA CIRCUITOS TERMINAIS - FORNECIMENTO E INSTALAÇÃO",21,"m",{"$f":"D82*(($F$6/100)+1)","v":19.03},{"$f":"SUM(F82*H82)","v":399.63}]
[null,"1.73",91927,4.7300000000000004,"CABO DE COBRE FLEXÍVEL, 2,5 MM², ISOLADO EM HEPR COM COBERTURA EM SHF1 PARA TENSÕES DE 1 kV",{"$f":"684+984+419+371-322","v":2136},"m",{"$f":"D83*(($F$6/100)+1)","v":5.77},{"$f":"SUM(F83*H83)","v":12324.72}]
[null,"1.74",91931,9.7899999999999991,"CABO DE COBRE FLEXÍVEL, 6 MM², ISOLADO EM HEPR COM COBERTURA EM SHF1 PARA TENSÕES DE 1 kV",{"$f":"50+50+58","v":158},"m",11.94,1886.52]
[null,"1.75","39257 I.",5.33,"CABO DE COBRE MULTIPOLAR 3x1,5 mm² - ISOLADO EM HEPR E COBERTURA EM SHF1",120,"m",{"$f":"D85*(($F$6/100)+1)","v":6.5},{"$f":"SUM(F85*H85)","v":780}]
[null,"1.76","20111 I.",10.119999999999999,"FITA ISOLANTE ADESIVA ANTICHAMA, USO ATE 750 V, EM ROLO DE 19 MM X 20 M",6,"un",12.35,74.099999999999994]
[null,"1.77","404 I.",1.38,"FITA ISOLANTE DE BORRACHA AUTOFUSAO, USO ATE 69 KV (ALTA TENSAO)",1.5,"m",1.68,2.52]
[null,"1.78",96985,70.3,"HASTE DE ATERRAMENTO 5/8\"",9,"un",85.77,771.93]
[null,"1.79",93653,11.22,"DISJUNTOR MONOPOLAR TIPO DIN, CORRENTE NOMINAL DE 10A - FORNECIMENTO E INSTALAÇÃO",10,"un",13.69,136.9]
[null,"1.80",93655,13.23,"DISJUNTOR MONOPOLAR TIPO DIN, CORRENTE NOMINAL DE 20A - FORNECIMENTO E INSTALAÇÃO",1,"un",16.14,16.14]
[null,"1.81",93658,21.38,"DISJUNTOR MONOPOLAR TIPO DIN, CORRENTE NOMINAL DE 40A - FORNECIMENTO E INSTALAÇÃO",1,"un",26.08,26.08]
[null,"1.82",93666,71.45,"DISJUNTOR BIPOLAR TIPO DIN, CORRENTE NOMINAL DE 50A - FORNECIMENTO E INSTALAÇÃO",1,"un",{"$f":"D92*(($F$6/100)+1)","v":87.17},{"$f":"SUM(F92*H92)","v":87.17}]
[null,"1.83","39445 I.",127.21,"DISPOSITIVO DR, 2 POLOS, SENSIBILIDADE DE 30 MA, CORRENTE DE 25 A, TIPO AC",1,"un",{"$f":"D93*(($F$6/100)+1)","v":155.19999999999999},{"$f":"SUM(F93*H93)","v":155.19999999999999}]
[null,"1.84","39457 I.",158.12,"DISPOSITIVO DR, 4 POLOS, SENSIBILIDADE DE 30 MA, CORRENTE DE 63 A, TIPO AC",1,"un",192.91,192.91]
[null,"1.85",90458,39.28,"QUEBRA EM ALVENARIA PARA QUADRO DE DISTRIBUIÇÃO",1,"un",47.92,47.92]
[null,"1.86",101883,518.01,"QUADRO DE DISTRIBUIÇÃO DE ENERGIA EM CHAPA DE AÇO GALVANIZADO, DE EMBUTIR, COM BARRAMENTO TRIFÁSICO, PARA 18 DISJUNTORES DIN 100A - FORNECIMENTO E INSTALAÇÃO",1,"un",631.97,631.97]
[null,"1.87","COTAÇÃO",221.23,"ALARME AUDIO VISUAL PARA SAN PCD COM 2 BOTOEIRAS KIT COMPLETO (OPÇÃO COM FIO)",1,"un",269.89999999999998,269.89999999999998]
[null,"1.88",88247,22.17,"AUXILIAR DE ELETRICISTA COM ENCARGOS COMPLEMENTARES",72,"h",27.05,1947.6]
[null,"1.89",88264,32.58,"ELETRICISTA COM ENCARGOS COMPLEMENTARES",{"$f":"F98","v":72},"h",39.75,2862]
[]
[null,null,null,null,"Total do item 1.................................................................................................................................................................................................................................",null,null,null,null,{"$f":"SUM(I11:I99)","v":43108.22}]
[null,2,null,null,"SISTEMAS PREVENTIVOS CONTRA INCÊNDIO"]
[null,"2.1",88247,22.17,"AUXILIAR DE ELETRICISTA COM ENCARGOS COMPLEMENTARES",4,"h",{"$f":"D103*(($F$6/100)+1)","v":27.05},{"$f":"SUM(F103*H103)","v":108.2}]
[null,"2.2",88264,32.58,"ELETRICISTA COM ENCARGOS COMPLEMENTARES",4,"h",{"$f":"D104*(($F$6/100)+1)","v":39.75},159]
[null,"2.3","COTAÇÃO",278.05,"LUMINARIA TIPO PLACA DE SAÍDA - 51X31 CM - BLOCO AUTONOMO",2,"un",{"$f":"D105*(($F$6/100)+1)","v":339.22},678.44]
[null,"2.4","COTAÇÃO",45.9,"LUMINARIA TIPO PLACA DE SAÍDA - 20X10 CM - BLOCO AUTONOMO",11,"un",{"$f":"D106*(($F$6/100)+1)","v":56},{"$f":"SUM(F106*H106)","v":616}]
[null,"2.5","COTAÇÃO",52.16,"LUMINÁRIA DE EMERGÊNCIA TIPO BLOCO AUTONOMO COM 2 FAROLETES E 600 LUMENS",4,"un",{"$f":"D107*(($F$6/100)+1)","v":63.64},{"$f":"SUM(F107*H107)","v":254.56}]
[null,"2.6","COTAÇÃO",68.040000000000006,"LUMINÁRIA DE EMERGÊNCIA TIPO BLOCO AUTONOMO COM 2 FAROLETES E 1200 LUMENS",3,"un",{"$f":"D108*(($F$6/100)+1)","v":83.01},249.03]
[null,"2.7","COTAÇÃO",89.36,"LUMINÁRIA DE EMERGÊNCIA TIPO BLOCO AUTONOMO COM 2 FAROLETES E 2000 LUMENS",5,"un",109.02,545.1]
[null,"2.8",97599,21.81,"LUMINÁRIA DE EMERGÊNCIA, COM 30 LÂMPADAS LED DE 2 W, SEM REATOR - FORNECIMENTO E INSTALAÇÃO",3,"un",{"$f":"D110*(($F$6/100)+1)","v":26.61},79.83]
[]
[null," ",null,null,"Total do item..............................................................................................................................................................................................................................................................................",null,null,null,null,{"$f":"SUM(I103:I110)","v":2690.16}]
[null,3,null,null,"INSTALAÇÕES DA ENTRADA DE ENERGIA"]
[null,"3.1","COMPOSIÇÃO",2513.62,"ENTRADA DE ENERGIA ELÉTRICA, AÉREA, BIFÁSICA, COM POSTE TIPO KIT POSTINHO, RAMAL DE LIGAÇÃO E ENTRADA 10 MM², DISJUNTOR DE PROTEÇÃO BIFÁSICO 50A, POSTE 8mx150daN - COMPLETA APROVADA CONCESSIONÁRIA LOCAL",1,"un",{"$f":"D114*(($F$6/100)+1)","v":3066.62},{"$f":"SUM(F114*H114)","v":3066.62}]
[]
[null," ",null,null,"Total do item..............................................................................................................................................................................................................................................................................",null,null,null,null,{"$f":"SUM(I114:I114)","v":3066.62}]
[3]
[null,null,null,null,"TOTAL GERAL DA OBRA ............................................................................................................................................................ R$",null,null,null,null,{"$f":"SUM(J116,J112,J101)","v":48865}]
[]
[null,"*Cotação: Itens com cotação de preço poderão ser conferidos pelo município antes da licitação."]
[]
[null,"S= Tabela SINAPI (Sintética)"]
[null,"I= Tabela SINAPI (Insumos)"]
[null,"Reg= Tabela Sinap Regional-Chapecó"]
[null,null,null,null,"Maravilha  (SC), dezembro de 2023."]
[]
[]
[null,"O valor do material e mão de obra foi obtido através da tabela do SINAPI com Desoneração - Novembro / 2023",null,null,null,null,"________________________________________"]
[null,"BDI considerado para itens SINAP: 22,00%",null,null,null,null,"Mauro Dagostin"]
[null,"BDI considerado para itens de cotação de preço: 22,00%",null,null,null,null,"Engenheiro eletricista – CREA/SC 104349-0"]
[null,null,null,null,null,null,"AMERIOS (Associação dos Municípios do Entre Rios)"]
[null,"  "]
[null," ",null,null,null,null,null,null,null," "]
[null," ",null,null," ",null,null,null,null," "]
[]
[null,null,null,null," "]
[null," ",null,null," "]
[null,null,null,null," "]
[null,null,null,null," "]
[null,null,null,null,null,null,null," "," "]
[null,"  "]

{"sheet":"COMPOSIÇÃO","index":1,"n_rows":23,"n_cols":5,"rows_kept":23,"cut":false,"hidden":true,"merged":[]}
[]
[]
[null,"ENTRADA DE ENERGIA - MONO 40A"]
[null,101489,"ENTRADA DE ENERGIA ELÉTRICA, AÉREA, MONOFÁSICA, COM CAIXA DE SOBREPOR, CABO DE 10 MM2 E DISJUNTOR DIN 50A (NÃO INCLUSO O POSTE DE CONCRETO).",1,1440.08]
[null,"41195 I.","POSTE DE CONCRETO DUPLO T 8Mx150daN",1,780.65]
[null,"39469 I.","DPS CLASSE 2 - IN=5KA - UM=275V",1,64.41]
[]
[null,null,null,null,{"$f":"SUM(E4:E6)","v":2285.14}]
[]
[null,"ENTRADA DE ENERGIA - BI 63A"]
[null,101498,"ENTRADA DE ENERGIA ELÉTRICA, AÉREA, BIFÁSICA, COM CAIXA DE SOBREPOR, CABO DE 16 MM2 E DISJUNTOR DIN 50A (NÃO INCLUSO O POSTE DE CONCRETO).",1,1855.66]
[null,"41195 I.","POSTE DE CONCRETO DUPLO T 8Mx150daN",1,709.68]
[null,"39469 I.","DPS CLASSE 2 - IN=5KA - UM=275V",2,64.41]
[]
[null,null,null,null,{"$f":"SUM(E11:E13)","v":2629.75}]
[]
[]
[null,"ENTRADA DE ENERGIA - BI 50A"]
[null,101497,"ENTRADA DE ENERGIA ELÉTRICA, AÉREA, BIFÁSICA, COM CAIXA DE SOBREPOR, CABO DE 10 MM2 E DISJUNTOR DIN 50A (NÃO INCLUSO O POSTE DE CONCRETO).",1,1739.53]
[null,"41195 I.","POSTE DE CONCRETO DUPLO T 8Mx150daN",1,709.68]
[null,"39469 I.","DPS CLASSE 2 - IN=5KA - UM=275V",2,64.41]
[]
[null,null,null,null,{"$f":"SUM(E19:E21)","v":2513.62}]